[Event "*** Titled Tuesday 3|2 Blitz (Late)"]
[Site "Chess.com"]
[Date "2017.01.03"]
[Round "1"]
[White "aspired"]
[Black "TrickyTrapChess"]
[Result "1-0"]
[WhiteElo "2440"]
[BlackElo "2133"]
[TimeControl "180+2"]
[EndTime "17:07:27 PST"]
[Termination "aspired won by resignation"]

1. e4 {[%clk 0:03:00.9]} 1... e6 {[%clk 0:03:00.3]} 2. d4 {[%clk 0:03:01.2]}
2... d5 {[%clk 0:03:00.7]} 3. Bd3 {[%clk 0:03:02.7]} 3... dxe4 {[%clk
0:03:00.9]} 4. Bxe4 {[%clk 0:03:04.6]} 4... Nf6 {[%clk 0:03:02.4]} 5. Bf3 {[%clk
0:03:05.1]} 5... c5 {[%clk 0:03:03.7]} 6. Ne2 {[%clk 0:03:05.7]} 6... Nc6 {[%clk
0:03:03.9]} 7. Be3 {[%clk 0:03:06.7]} 7... cxd4 {[%clk 0:03:03.6]} 8. Nxd4
{[%clk 0:03:07.1]} 8... Nxd4 {[%clk 0:03:04.9]} 9. Qxd4 {[%clk 0:03:06.3]} 9...
Qxd4 {[%clk 0:03:03.7]} 10. Bxd4 {[%clk 0:03:08.2]} 10... Bb4+ {[%clk
0:03:04.2]} 11. Nc3 {[%clk 0:03:07.3]} 11... O-O {[%clk 0:02:57.8]} 12. O-O-O
{[%clk 0:03:07.2]} 12... Re8 {[%clk 0:02:56.4]} 13. Nb5 {[%clk 0:02:49.6]} 13...
Ba5 {[%clk 0:02:09]} 14. Nd6 {[%clk 0:02:32]} 14... Rd8 {[%clk 0:01:47.8]} 15.
Bxb7 {[%clk 0:02:15.2]} 15... Rxd6 {[%clk 0:00:56.5]} 16. Bxa8 {[%clk
0:02:14.5]} 16... Nd5 {[%clk 0:00:44.9]} 17. Bxa7 {[%clk 0:02:06.6]} 17... Ra6
{[%clk 0:00:39.1]} 18. Bxd5 {[%clk 0:02:07.1]} 18... exd5 {[%clk 0:00:31.8]} 19.
Bd4 {[%clk 0:01:59.5]} 19... Be6 {[%clk 0:00:23.3]} 20. c3 {[%clk 0:01:55]}
20... Bd8 {[%clk 0:00:20.1]} 21. Kb1 {[%clk 0:01:53.8]} 21... f6 {[%clk
0:00:19.4]} 22. Rhe1 {[%clk 0:01:53.2]} 22... Kf7 {[%clk 0:00:20.8]} 23. f3
{[%clk 0:01:52.2]} 23... Bc7 {[%clk 0:00:19]} 24. g3 {[%clk 0:01:51.9]} 24...
Bd7 {[%clk 0:00:17.4]} 25. Rd2 {[%clk 0:01:52]} 25... Bb5 {[%clk 0:00:17.4]} 26.
b3 {[%clk 0:01:52.9]} 26... Bd6 {[%clk 0:00:17.7]} 27. a4 {[%clk 0:01:53.4]}
27... Bd7 {[%clk 0:00:19]} 28. Ka2 {[%clk 0:01:54.4]} 28... Ra8 {[%clk
0:00:20.2]} 29. Bf2 {[%clk 0:01:50]} 29... Be6 {[%clk 0:00:20.4]} 30. Rde2
{[%clk 0:01:49]} 30... Bd7 {[%clk 0:00:20.6]} 31. Bd4 {[%clk 0:01:48.8]} 31...
Ra6 {[%clk 0:00:20.1]} 32. Kb2 {[%clk 0:01:50]} 32... Ra8 {[%clk 0:00:20.6]} 33.
Bb6 {[%clk 0:01:50.2]} 33... Ra6 {[%clk 0:00:21.5]} 34. a5 {[%clk 0:01:51.2]}
34... Ra8 {[%clk 0:00:22.4]} 35. b4 {[%clk 0:01:52.1]} 35... Ra6 {[%clk
0:00:21.6]} 36. Rd2 {[%clk 0:01:52]} 36... Be6 {[%clk 0:00:22]} 37. Red1 {[%clk
0:01:51.8]} 37... Be7 {[%clk 0:00:22.6]} 38. Ka3 {[%clk 0:01:50.1]} 38... Ra8
{[%clk 0:00:23.1]} 39. Ka4 {[%clk 0:01:50.1]} 39... Bd7+ {[%clk 0:00:23.6]} 40.
b5 {[%clk 0:01:50.3]} 40... Be6 {[%clk 0:00:24.8]} 41. Rxd5 {[%clk 0:01:49.3]}
41... Bxd5 {[%clk 0:00:23.5]} 42. Rxd5 {[%clk 0:01:51.2]} 42... Rc8 {[%clk
0:00:24.7]} 43. Kb3 {[%clk 0:01:50.7]} 43... Ke6 {[%clk 0:00:24.8]} 44. c4
{[%clk 0:01:52.1]} 44... Bd6 {[%clk 0:00:24.7]} 45. a6 {[%clk 0:01:52.5]} 45...
Be5 {[%clk 0:00:25.5]} 46. a7 {[%clk 0:01:52.3]} 46... Ra8 {[%clk 0:00:25.2]}
47. f4 {[%clk 0:01:51.9]} 47... Bd6 {[%clk 0:00:25.7]} 48. Ka4 {[%clk
0:01:52.9]} 48... Kd7 {[%clk 0:00:26.3]} 49. Ka5 {[%clk 0:01:54]} 49... Ke6
{[%clk 0:00:26.8]} 50. Ka6 {[%clk 0:01:55.2]} 1-0

[Event "*** Titled Tuesday 3|2 Blitz (Late)"]
[Site "Chess.com"]
[Date "2017.01.03"]
[Round "1"]
[White "norwaytoadog"]
[Black "simplerXiao"]
[Result "0-1"]
[WhiteElo "1945"]
[BlackElo "2355"]
[TimeControl "180+2"]
[EndTime "17:07:27 PST"]
[Termination "simplerXiao won by resignation"]

1. e4 {[%clk 0:02:59.7]} 1... c5 {[%clk 0:01:56.1]} 2. Nf3 {[%clk 0:02:46.2]}
2... d6 {[%clk 0:01:55.7]} 3. Bb5+ {[%clk 0:02:46]} 3... Nc6 {[%clk 0:01:53.2]}
4. Bxc6+ {[%clk 0:02:46.2]} 4... bxc6 {[%clk 0:01:53.9]} 5. O-O {[%clk
0:02:46.9]} 5... e5 {[%clk 0:01:55]} 6. c3 {[%clk 0:02:47.2]} 6... Nf6 {[%clk
0:01:55.1]} 7. d4 {[%clk 0:02:47.1]} 7... cxd4 {[%clk 0:01:51.7]} 8. cxd4 {[%clk
0:02:47.1]} 8... exd4 {[%clk 0:01:50.2]} 9. Nxd4 {[%clk 0:02:37.1]} 9... c5
{[%clk 0:01:50.9]} 10. Nb5 {[%clk 0:02:21.6]} 10... a6 {[%clk 0:01:43.6]} 11.
N5c3 {[%clk 0:01:55.5]} 11... Be7 {[%clk 0:01:41.5]} 12. b3 {[%clk 0:01:48.5]}
12... O-O {[%clk 0:01:41.6]} 13. Bb2 {[%clk 0:01:49]} 13... Bb7 {[%clk
0:01:42.7]} 14. Re1 {[%clk 0:01:47.7]} 14... Re8 {[%clk 0:01:40.8]} 15. Qd3
{[%clk 0:01:47.9]} 15... Rc8 {[%clk 0:01:29.8]} 16. Nd2 {[%clk 0:01:47.2]} 16...
Nd7 {[%clk 0:01:30.2]} 17. Nc4 {[%clk 0:01:41.2]} 17... Ne5 {[%clk 0:01:28.8]}
18. Nxe5 {[%clk 0:01:40.5]} 18... dxe5 {[%clk 0:01:29.6]} 19. Qg3 {[%clk
0:01:39.7]} 19... Bh4 {[%clk 0:01:28]} 20. Qg4 {[%clk 0:01:38.1]} 20... Qg5
{[%clk 0:01:18.8]} 21. Qf3 {[%clk 0:01:13.6]} 21... Qg6 {[%clk 0:01:06.2]} 22.
Rad1 {[%clk 0:01:11.8]} 22... Rcd8 {[%clk 0:01:01.8]} 23. g3 {[%clk 0:00:57.8]}
23... Bg5 {[%clk 0:01:01.6]} 24. Kf1 {[%clk 0:00:55.4]} 24... Rd4 {[%clk
0:00:58.7]} 25. h4 {[%clk 0:00:51.5]} 25... Bd2 {[%clk 0:00:56]} 26. Re2 {[%clk
0:00:39]} 26... Bxc3 {[%clk 0:00:56.9]} 27. Rxd4 {[%clk 0:00:27.2]} 27... Bxd4
{[%clk 0:00:57.7]} 28. Bc1 {[%clk 0:00:21.9]} 28... a5 {[%clk 0:00:57.5]} 29.
Kg2 {[%clk 0:00:22.4]} 29... f5 {[%clk 0:00:55.9]} 30. h5 {[%clk 0:00:20]} 30...
fxe4 {[%clk 0:00:56.4]} 0-1

[Event "*** Titled Tuesday 3|2 Blitz (Late)"]
[Site "Chess.com"]
[Date "2017.01.03"]
[Round "1"]
[White "GianmarcoVaR"]
[Black "Shivagami"]
[Result "1-0"]
[WhiteElo "2394"]
[BlackElo "2057"]
[TimeControl "180+2"]
[EndTime "17:07:50 PST"]
[Termination "GianmarcoVaR won on time"]

1. d4 {[%clk 0:02:00.2]} 1... Nf6 {[%clk 0:02:53.3]} 2. Nf3 {[%clk 0:02:02.1]}
2... g6 {[%clk 0:02:51.7]} 3. Bg5 {[%clk 0:02:03.4]} 3... Bg7 {[%clk 0:02:51.8]}
4. Nbd2 {[%clk 0:02:05]} 4... d5 {[%clk 0:02:47.4]} 5. e3 {[%clk 0:02:05]} 5...
O-O {[%clk 0:02:48.1]} 6. Be2 {[%clk 0:02:02]} 6... c5 {[%clk 0:02:47.5]} 7.
dxc5 {[%clk 0:02:00.8]} 7... Qa5 {[%clk 0:02:39.3]} 8. O-O {[%clk 0:01:58.4]}
8... Qxc5 {[%clk 0:02:34]} 9. c4 {[%clk 0:01:59.2]} 9... Ne4 {[%clk 0:02:29.4]}
10. Nb3 {[%clk 0:01:44.6]} 10... Qd6 {[%clk 0:02:06.5]} 11. Qxd5 {[%clk
0:01:16.7]} 11... Qxd5 {[%clk 0:02:02.3]} 12. cxd5 {[%clk 0:01:17.9]} 12... Bxb2
{[%clk 0:01:50.1]} 13. Bxe7 {[%clk 0:01:17.3]} 13... Re8 {[%clk 0:01:27.7]} 14.
Rab1 {[%clk 0:01:18]} 14... Bg7 {[%clk 0:01:20.2]} 15. Bb4 {[%clk 0:01:18.5]}
15... Bf5 {[%clk 0:01:17.6]} 16. Rfd1 {[%clk 0:01:17.3]} 16... Bc3 {[%clk
0:01:02]} 17. Nbd4 {[%clk 0:01:17.4]} 17... Bxb4 {[%clk 0:00:45.8]} 18. Rxb4
{[%clk 0:01:18.3]} 18... Nc3 {[%clk 0:00:43]} 19. Rd2 {[%clk 0:01:14.9]} 19...
Nxe2+ {[%clk 0:00:36.4]} 20. Rxe2 {[%clk 0:01:05.8]} 20... Be4 {[%clk
0:00:31.6]} 21. Nb5 {[%clk 0:00:56.2]} 21... Na6 {[%clk 0:00:27]} 22. Rd4 {[%clk
0:00:49.8]} 22... Rad8 {[%clk 0:00:21.3]} 23. Red2 {[%clk 0:00:41.8]} 23... Re7
{[%clk 0:00:03.1]} 24. d6 {[%clk 0:00:40.7]} 24... Red7 {[%clk 0:00:04.1]} 25.
Rxe4 {[%clk 0:00:40.2]} 25... Nc5 {[%clk 0:00:04.2]} 26. Rc4 {[%clk 0:00:39.3]}
26... b6 {[%clk 0:00:05]} 27. Ne5 {[%clk 0:00:39.1]} 27... a6 {[%clk 0:00:04.5]}
28. Nxd7 {[%clk 0:00:38.3]} 28... axb5 {[%clk 0:00:05.7]} 29. Rxc5 {[%clk
0:00:39.2]} 29... bxc5 {[%clk 0:00:04.5]} 30. Nxc5 {[%clk 0:00:40.3]} 1-0

[Event "*** Titled Tuesday 3|2 Blitz (Late)"]
[Site "Chess.com"]
[Date "2017.01.03"]
[Round "1"]
[White "yian123"]
[Black "NoWuss2"]
[Result "1-0"]
[WhiteElo "2388"]
[BlackElo "2053"]
[TimeControl "180+2"]
[EndTime "17:07:53 PST"]
[Termination "yian123 won by resignation"]

1. e4 {[%clk 0:02:56.4]} 1... Nc6 {[%clk 0:02:59]} 2. d4 {[%clk 0:02:56.9]} 2...
e5 {[%clk 0:03:00.4]} 3. dxe5 {[%clk 0:02:54.9]} 3... Nxe5 {[%clk 0:03:01.2]} 4.
f4 {[%clk 0:02:54.1]} 4... Nc6 {[%clk 0:03:02.2]} 5. Nf3 {[%clk 0:02:54.2]} 5...
Bc5 {[%clk 0:03:02.7]} 6. Nc3 {[%clk 0:02:49.8]} 6... Nh6 {[%clk 0:03:03.7]} 7.
h3 {[%clk 0:02:38.5]} 7... O-O {[%clk 0:02:36.1]} 8. Bc4 {[%clk 0:02:38.4]} 8...
a6 {[%clk 0:02:26.1]} 9. Qe2 {[%clk 0:02:35.5]} 9... d6 {[%clk 0:02:27]} 10. Be3
{[%clk 0:02:35.2]} 10... Bxe3 {[%clk 0:02:14.5]} 11. Qxe3 {[%clk 0:02:37.1]}
11... Re8 {[%clk 0:02:16.4]} 12. O-O {[%clk 0:02:29.6]} 12... Be6 {[%clk
0:02:05.1]} 13. Bxe6 {[%clk 0:02:24.2]} 13... fxe6 {[%clk 0:02:07]} 14. Rad1
{[%clk 0:02:21]} 14... Qe7 {[%clk 0:02:07.1]} 15. Rfe1 {[%clk 0:02:17.9]} 15...
Nf7 {[%clk 0:02:07.9]} 16. a3 {[%clk 0:02:10.8]} 16... Rad8 {[%clk 0:02:07.8]}
17. Ne2 {[%clk 0:01:55.5]} 17... Qf6 {[%clk 0:02:06.3]} 18. c3 {[%clk
0:01:54.7]} 18... h6 {[%clk 0:02:01.2]} 19. Nfd4 {[%clk 0:01:50.5]} 19... Ne7
{[%clk 0:01:47]} 20. Nf3 {[%clk 0:01:34.9]} 20... e5 {[%clk 0:01:40.7]} 21. f5
{[%clk 0:01:25.2]} 21... d5 {[%clk 0:01:34.8]} 22. exd5 {[%clk 0:01:19.9]} 22...
Nxf5 {[%clk 0:01:24.7]} 23. Qc5 {[%clk 0:00:58.4]} 23... N7d6 {[%clk 0:01:02.2]}
24. Nc1 {[%clk 0:00:49.7]} 24... Rd7 {[%clk 0:00:58.8]} 25. Nb3 {[%clk
0:00:43.3]} 25... Ng3 {[%clk 0:00:50.4]} 26. Qf2 {[%clk 0:00:39.6]} 26... Qf4
{[%clk 0:00:38.4]} 27. Nc5 {[%clk 0:00:37]} 27... Rf7 {[%clk 0:00:19.2]} 28. Ne6
{[%clk 0:00:22.7]} 28... Nde4 {[%clk 0:00:20.5]} 29. Nxf4 {[%clk 0:00:21.9]}
29... Nxf2 {[%clk 0:00:21.5]} 30. Kxf2 {[%clk 0:00:22.9]} 30... exf4 {[%clk
0:00:21.4]} 31. Rxe8+ {[%clk 0:00:23.2]} 1-0

[Event "*** Titled Tuesday 3|2 Blitz (Late)"]
[Site "Chess.com"]
[Date "2017.01.03"]
[Round "1"]
[White "AdrianaNikolova"]
[Black "GGuseinov"]
[Result "0-1"]
[WhiteElo "2245"]
[BlackElo "2554"]
[TimeControl "180+2"]
[EndTime "17:08:00 PST"]
[Termination "GGuseinov won by resignation"]

1. e4 {[%clk 0:03:00.8]} 1... c5 {[%clk 0:03:00.7]} 2. c3 {[%clk 0:03:00.7]}
2... g6 {[%clk 0:02:57.5]} 3. d4 {[%clk 0:03:00.7]} 3... cxd4 {[%clk 0:02:56.9]}
4. cxd4 {[%clk 0:03:02.6]} 4... d5 {[%clk 0:02:50.3]} 5. e5 {[%clk 0:03:03.7]}
5... Nh6 {[%clk 0:02:46.8]} 6. Nc3 {[%clk 0:03:04.7]} 6... Nc6 {[%clk
0:02:46.4]} 7. Bb5 {[%clk 0:03:05.2]} 7... Bg7 {[%clk 0:02:47.8]} 8. Bf4 {[%clk
0:03:06]} 8... O-O {[%clk 0:02:47.4]} 9. Qd2 {[%clk 0:03:07.1]} 9... Nf5 {[%clk
0:02:44.2]} 10. Nf3 {[%clk 0:03:08.5]} 10... f6 {[%clk 0:02:12]} 11. Bxc6 {[%clk
0:02:31.8]} 11... bxc6 {[%clk 0:02:12.3]} 12. g4 {[%clk 0:02:30.1]} 12... fxe5
{[%clk 0:02:13.5]} 13. Bxe5 {[%clk 0:02:16.1]} 13... Nh6 {[%clk 0:01:59.2]} 14.
Bxg7 {[%clk 0:02:09.4]} 14... Kxg7 {[%clk 0:02:00.8]} 15. g5 {[%clk 0:01:59.3]}
15... Rxf3 {[%clk 0:01:51.7]} 16. gxh6+ {[%clk 0:01:58.8]} 16... Kg8 {[%clk
0:01:52.6]} 17. O-O-O {[%clk 0:01:57.8]} 17... Rb8 {[%clk 0:01:44.9]} 18. Qe2
{[%clk 0:01:46.2]} 18... Qf8 {[%clk 0:01:43.8]} 19. Qe5 {[%clk 0:01:28.6]} 19...
Qxh6+ {[%clk 0:01:44.3]} 20. Kb1 {[%clk 0:01:18.8]} 20... Rb7 {[%clk 0:01:28.1]}
21. Na4 {[%clk 0:01:11.9]} 21... Rxf2 {[%clk 0:01:22.6]} 22. b3 {[%clk
0:00:56.9]} 22... Qh3 {[%clk 0:01:15]} 23. Rhe1 {[%clk 0:00:22.4]} 23... Rxb3+
{[%clk 0:01:06.6]} 24. Ka1 {[%clk 0:00:14.9]} 24... Rxa2+ {[%clk 0:01:05.4]} 25.
Kxa2 {[%clk 0:00:13.7]} 25... Ra3+ {[%clk 0:01:07.3]} 26. Kb1 {[%clk 0:00:15]}
26... Bf5+ {[%clk 0:00:56.8]} 27. Qxf5 {[%clk 0:00:11.5]} 27... Qxf5+ {[%clk
0:00:53.5]} 28. Kb2 {[%clk 0:00:09.3]} 28... Rxa4 {[%clk 0:00:55.4]} 29. Rd2
{[%clk 0:00:08.3]} 29... Qf3 {[%clk 0:00:53.5]} 30. Rxe7 {[%clk 0:00:06.1]}
30... Rb4+ {[%clk 0:00:51.2]} 31. Kc2 {[%clk 0:00:08]} 31... Qb3+ {[%clk
0:00:52.1]} 0-1

[Event "*** Titled Tuesday 3|2 Blitz (Late)"]
[Site "Chess.com"]
[Date "2017.01.03"]
[Round "1"]
[White "DiamondCrusher22"]
[Black "attack2mateU"]
[Result "0-1"]
[WhiteElo "1845"]
[BlackElo "2350"]
[TimeControl "180+2"]
[EndTime "17:08:07 PST"]
[Termination "attack2mateU won by checkmate"]

1. e4 {[%clk 0:03:00.6]} 1... c5 {[%clk 0:03:00.3]} 2. Nf3 {[%clk 0:03:00.5]}
2... d6 {[%clk 0:03:00.5]} 3. c3 {[%clk 0:03:01.1]} 3... Nf6 {[%clk 0:03:01.1]}
4. Be2 {[%clk 0:03:01.9]} 4... Nbd7 {[%clk 0:03:00]} 5. d3 {[%clk 0:03:00.7]}
5... e6 {[%clk 0:02:53.6]} 6. O-O {[%clk 0:02:57.2]} 6... Be7 {[%clk 0:02:55.2]}
7. Re1 {[%clk 0:02:55.4]} 7... b6 {[%clk 0:02:51.5]} 8. Nbd2 {[%clk 0:02:54.1]}
8... Bb7 {[%clk 0:02:52.5]} 9. Bf1 {[%clk 0:02:51.9]} 9... O-O {[%clk
0:02:51.9]} 10. e5 {[%clk 0:02:33.4]} 10... dxe5 {[%clk 0:02:49.8]} 11. Nxe5
{[%clk 0:02:22.9]} 11... Nxe5 {[%clk 0:02:45.6]} 12. Rxe5 {[%clk 0:02:23.3]}
12... Qc7 {[%clk 0:02:33.9]} 13. Re3 {[%clk 0:01:52.2]} 13... Nd5 {[%clk
0:02:24.4]} 14. Re1 {[%clk 0:01:38]} 14... Rad8 {[%clk 0:02:07.2]} 15. Ne4
{[%clk 0:01:36.7]} 15... Nf4 {[%clk 0:01:42.3]} 16. g3 {[%clk 0:01:14]} 16...
Nxd3 {[%clk 0:01:26.4]} 17. Bxd3 {[%clk 0:01:15.9]} 17... c4 {[%clk 0:01:27]}
18. Qg4 {[%clk 0:01:10.9]} 18... f5 {[%clk 0:01:24.2]} 19. Nf6+ {[%clk
0:01:03.7]} 19... Bxf6 {[%clk 0:01:18.4]} 20. Qxc4 {[%clk 0:01:05]} 20... Qd6
{[%clk 0:01:06.3]} 21. Bxf5 {[%clk 0:01:01.8]} 21... Bd5 {[%clk 0:01:06.3]} 22.
Bxe6+ {[%clk 0:00:59.7]} 22... Qxe6 {[%clk 0:01:06.3]} 23. Rxe6 {[%clk
0:00:45.9]} 23... Bxc4 {[%clk 0:01:07.5]} 24. Re1 {[%clk 0:00:46.7]} 24... Bd5
{[%clk 0:00:58.3]} 25. Be3 {[%clk 0:00:46.7]} 25... Bf3 {[%clk 0:00:59.4]} 26.
Rac1 {[%clk 0:00:45.7]} 26... g5 {[%clk 0:00:57.9]} 27. c4 {[%clk 0:00:42.5]}
27... Bxb2 {[%clk 0:00:57.2]} 28. Rb1 {[%clk 0:00:43.8]} 28... Bd4 {[%clk
0:00:55.5]} 29. Bxg5 {[%clk 0:00:42.9]} 29... Rc8 {[%clk 0:00:45.6]} 30. Rbc1
{[%clk 0:00:34]} 30... Rfe8 {[%clk 0:00:42.8]} 31. Rf1 {[%clk 0:00:32.2]} 31...
Re2 {[%clk 0:00:41.9]} 32. Rcd1 {[%clk 0:00:28.7]} 32... Bc5 {[%clk 0:00:34.2]}
33. Rd3 {[%clk 0:00:28.7]} 33... Rf8 {[%clk 0:00:32.1]} 34. Bh6 {[%clk
0:00:26.2]} 34... Rf6 {[%clk 0:00:31]} 35. Rd8+ {[%clk 0:00:26.5]} 35... Kf7
{[%clk 0:00:32.1]} 36. Rd7+ {[%clk 0:00:26.9]} 36... Ke6 {[%clk 0:00:33]} 37.
Rd3 {[%clk 0:00:26.6]} 37... Be4 {[%clk 0:00:32.8]} 38. Rd2 {[%clk 0:00:20.4]}
38... Rfxf2 {[%clk 0:00:27]} 39. Rxf2 {[%clk 0:00:21.2]} 39... Re1# {[%clk
0:00:28.1]} 0-1

[Event "*** Titled Tuesday 3|2 Blitz (Late)"]
[Site "Chess.com"]
[Date "2017.01.03"]
[Round "1"]
[White "Syntactic_Sugar"]
[Black "pKiLz5Rn9b"]
[Result "1/2-1/2"]
[WhiteElo "2219"]
[BlackElo "2475"]
[TimeControl "180+2"]
[EndTime "17:08:32 PST"]
[Termination "Game drawn by agreement"]

1. e4 {[%clk 0:03:02]} 1... e6 {[%clk 0:03:00.9]} 2. d4 {[%clk 0:03:02.8]} 2...
d5 {[%clk 0:03:01.8]} 3. Nc3 {[%clk 0:03:04.5]} 3... dxe4 {[%clk 0:03:03.2]} 4.
Nxe4 {[%clk 0:03:06.4]} 4... Nd7 {[%clk 0:03:04.9]} 5. Nf3 {[%clk 0:03:05.5]}
5... Ngf6 {[%clk 0:03:06.3]} 6. Bd3 {[%clk 0:03:06.1]} 6... c5 {[%clk 0:03:07]}
7. O-O {[%clk 0:03:06.4]} 7... Nxe4 {[%clk 0:03:08.4]} 8. Bxe4 {[%clk
0:03:06.9]} 8... Nf6 {[%clk 0:03:10]} 9. Bg5 {[%clk 0:03:03.6]} 9... Be7 {[%clk
0:03:10.5]} 10. Bxf6 {[%clk 0:03:02.9]} 10... gxf6 {[%clk 0:03:11.6]} 11. c3
{[%clk 0:03:03.3]} 11... cxd4 {[%clk 0:03:07.8]} 12. Nxd4 {[%clk 0:02:55.3]}
12... Qb6 {[%clk 0:03:07]} 13. Qe2 {[%clk 0:02:22.3]} 13... Bd7 {[%clk
0:03:05.7]} 14. Rfd1 {[%clk 0:02:18.9]} 14... O-O-O {[%clk 0:03:06.7]} 15. b4
{[%clk 0:02:14.6]} 15... f5 {[%clk 0:03:05.9]} 16. Bf3 {[%clk 0:02:11.2]} 16...
Bf6 {[%clk 0:03:06]} 17. a4 {[%clk 0:02:07.9]} 17... e5 {[%clk 0:02:54.6]} 18.
a5 {[%clk 0:02:06.8]} 18... Qc7 {[%clk 0:02:49.3]} 19. Nb5 {[%clk 0:02:00.9]}
19... Bxb5 {[%clk 0:02:49.9]} 20. Qxb5 {[%clk 0:02:01.9]} 20... a6 {[%clk
0:02:51.1]} 21. Qa4 {[%clk 0:01:34.4]} 21... e4 {[%clk 0:02:48.4]} 22. Be2
{[%clk 0:01:32.1]} 22... Rxd1+ {[%clk 0:02:49.7]} 23. Rxd1 {[%clk 0:01:26.8]}
23... Rd8 {[%clk 0:02:50.3]} 24. Rxd8+ {[%clk 0:01:23.4]} 24... Kxd8 {[%clk
0:02:51.3]} 25. Qd1+ {[%clk 0:01:21.4]} 25... Ke7 {[%clk 0:02:51.4]} 26. Qd5
{[%clk 0:01:17.6]} 26... Qd7 {[%clk 0:02:36.1]} 27. Qxd7+ {[%clk 0:01:14.2]}
27... Kxd7 {[%clk 0:02:36.4]} 28. b5 {[%clk 0:01:02.8]} 28... Bxc3 {[%clk
0:02:35.6]} 29. bxa6 {[%clk 0:01:03.5]} 29... bxa6 {[%clk 0:02:37.2]} 30. Bxa6
{[%clk 0:01:04.4]} 30... Bxa5 {[%clk 0:02:38.8]} 31. Kf1 {[%clk 0:01:05.5]}
31... Bb6 {[%clk 0:02:35.3]} 32. Bc4 {[%clk 0:01:00.6]} 32... Ke7 {[%clk
0:02:35.1]} 33. Ke2 {[%clk 0:00:54.8]} 33... Kf6 {[%clk 0:02:34.4]} 34. g3
{[%clk 0:00:40.6]} 34... h5 {[%clk 0:02:30]} 35. Bd5 {[%clk 0:00:36.4]} 35...
Kg6 {[%clk 0:02:28.7]} 36. Kf1 {[%clk 0:00:34]} 36... f6 {[%clk 0:02:23.4]} 37.
Kg2 {[%clk 0:00:34.2]} 37... Kg5 {[%clk 0:02:22.5]} 38. h4+ {[%clk 0:00:29.4]}
38... Kg6 {[%clk 0:02:23.4]} 39. Bc6 {[%clk 0:00:29.6]} 39... Kf7 {[%clk
0:02:24.5]} 40. Bd5+ {[%clk 0:00:30.1]} 40... Ke7 {[%clk 0:02:06.6]} 41. Bc6
{[%clk 0:00:29.4]} 41... Ba7 {[%clk 0:02:03.9]} 42. Bd5 {[%clk 0:00:30.4]} 42...
Bd4 {[%clk 0:01:53.6]} 43. Bc6 {[%clk 0:00:29.3]} 43... Kf7 {[%clk 0:01:50.6]}
44. Bd5+ {[%clk 0:00:30.2]} 44... Kg7 {[%clk 0:01:50.3]} 45. Bc6 {[%clk
0:00:30.9]} 45... Bc5 {[%clk 0:01:45.7]} 46. Be8 {[%clk 0:00:30.4]} 46... Kh6
{[%clk 0:01:37.3]} 47. Bd7 {[%clk 0:00:30.1]} 47... f4 {[%clk 0:01:19.9]} 48.
gxf4 {[%clk 0:00:25.4]} 48... Bd6 {[%clk 0:01:19.3]} 49. f5 {[%clk 0:00:23.9]}
49... Bc5 {[%clk 0:01:14.3]} 50. Bc6 {[%clk 0:00:23.5]} 50... e3 {[%clk
0:01:15.7]} 51. fxe3 {[%clk 0:00:22]} 51... Bxe3 {[%clk 0:01:17.6]} 52. Kh3
{[%clk 0:00:21.6]} 52... Bf2 {[%clk 0:01:17.1]} 53. Be4 {[%clk 0:00:22.4]} 53...
Kg7 {[%clk 0:01:15.9]} 54. Bf3 {[%clk 0:00:23]} 54... Kh6 {[%clk 0:01:17.3]} 55.
Be4 {[%clk 0:00:24.3]} 55... Be1 {[%clk 0:01:18.4]} 56. Bf3 {[%clk 0:00:25]}
1/2-1/2

[Event "*** Titled Tuesday 3|2 Blitz (Late)"]
[Site "Chess.com"]
[Date "2017.01.03"]
[Round "1"]
[White "chito89"]
[Black "macko06"]
[Result "0-1"]
[WhiteElo "2486"]
[BlackElo "2269"]
[TimeControl "180+2"]
[EndTime "17:08:33 PST"]
[Termination "macko06 won by resignation"]

1. d4 {[%clk 0:02:59.2]} 1... Nf6 {[%clk 0:02:58.9]} 2. c4 {[%clk 0:02:59.3]}
2... e6 {[%clk 0:02:58.6]} 3. Nc3 {[%clk 0:02:59.2]} 3... Bb4 {[%clk 0:02:56.8]}
4. g3 {[%clk 0:02:59.7]} 4... O-O {[%clk 0:02:57.2]} 5. Bg2 {[%clk 0:03:00.5]}
5... d5 {[%clk 0:02:55.7]} 6. Nf3 {[%clk 0:03:01.1]} 6... dxc4 {[%clk
0:02:53.6]} 7. O-O {[%clk 0:03:01.5]} 7... c5 {[%clk 0:02:52.4]} 8. dxc5 {[%clk
0:03:00.7]} 8... Bxc5 {[%clk 0:02:52.5]} 9. Ne5 {[%clk 0:03:01.5]} 9... Qc7
{[%clk 0:02:49.6]} 10. Bf4 {[%clk 0:02:25.8]} 10... Nh5 {[%clk 0:02:50.4]} 11.
Rc1 {[%clk 0:02:08.1]} 11... Nxf4 {[%clk 0:02:44.1]} 12. gxf4 {[%clk 0:02:08.7]}
12... Nc6 {[%clk 0:02:45.1]} 13. Nxc6 {[%clk 0:01:46.5]} 13... bxc6 {[%clk
0:02:44.2]} 14. Na4 {[%clk 0:01:43.6]} 14... Rd8 {[%clk 0:02:40.3]} 15. Qc2
{[%clk 0:01:40.8]} 15... Bd6 {[%clk 0:02:37.6]} 16. e3 {[%clk 0:01:39.1]} 16...
Ba6 {[%clk 0:02:36]} 17. Rfd1 {[%clk 0:01:34.2]} 17... Be7 {[%clk 0:02:34.2]}
18. Bf1 {[%clk 0:01:21.9]} 18... c5 {[%clk 0:02:31.8]} 19. Bg2 {[%clk
0:01:14.3]} 19... Rac8 {[%clk 0:02:27.9]} 20. Nc3 {[%clk 0:01:13.5]} 20... Rd3
{[%clk 0:02:25.5]} 21. Be4 {[%clk 0:01:11.2]} 21... Qd7 {[%clk 0:02:17.2]} 22.
Bxd3 {[%clk 0:01:01.5]} 22... cxd3 {[%clk 0:02:16.7]} 23. Qa4 {[%clk 0:01:02.3]}
23... Qxa4 {[%clk 0:02:14.8]} 24. Nxa4 {[%clk 0:01:00.8]} 24... c4 {[%clk
0:02:14.5]} 25. Nc3 {[%clk 0:00:45.7]} 25... g6 {[%clk 0:02:12.4]} 26. Nb1
{[%clk 0:00:46.3]} 26... Bf6 {[%clk 0:02:10.5]} 27. Rd2 {[%clk 0:00:42]} 27...
Kg7 {[%clk 0:02:08.7]} 28. Nc3 {[%clk 0:00:42.3]} 28... Be7 {[%clk 0:02:07.1]}
29. f3 {[%clk 0:00:39.5]} 29... f5 {[%clk 0:02:06.1]} 30. Kf2 {[%clk 0:00:40.2]}
30... Kf7 {[%clk 0:02:02.6]} 31. Nd1 {[%clk 0:00:33.4]} 31... Bh4+ {[%clk
0:01:55.2]} 32. Kg2 {[%clk 0:00:32.3]} 32... Be1 {[%clk 0:01:53]} 33. Rf2 {[%clk
0:00:30.8]} 33... Bxf2 {[%clk 0:01:54.1]} 34. Kxf2 {[%clk 0:00:32.3]} 34... Rc5
{[%clk 0:01:50.1]} 35. Ke1 {[%clk 0:00:33.1]} 35... Ra5 {[%clk 0:01:47.4]} 36.
a3 {[%clk 0:00:33.6]} 36... Rd5 {[%clk 0:01:45.5]} 37. Kd2 {[%clk 0:00:34.4]}
37... Rd7 {[%clk 0:01:44]} 38. Nc3 {[%clk 0:00:30.9]} 38... Ke7 {[%clk
0:01:42.4]} 39. Na4 {[%clk 0:00:29.5]} 39... Kd6 {[%clk 0:01:41.1]} 40. Rg1
{[%clk 0:00:29.7]} 40... Bb5 {[%clk 0:01:36.7]} 41. Nc3 {[%clk 0:00:28.6]} 41...
Bc6 {[%clk 0:01:35.9]} 42. e4 {[%clk 0:00:29.6]} 42... Rb7 {[%clk 0:01:30.9]}
43. Kc1 {[%clk 0:00:30.4]} 43... Kc5 {[%clk 0:01:27.5]} 44. Re1 {[%clk
0:00:31.1]} 44... Kd4 {[%clk 0:01:25.9]} 45. Nd1 {[%clk 0:00:31.2]} 45... fxe4
{[%clk 0:01:20.6]} 46. fxe4 {[%clk 0:00:33.1]} 46... Bxe4 {[%clk 0:01:19.2]} 47.
h4 {[%clk 0:00:34.2]} 47... Rf7 {[%clk 0:01:15.4]} 48. Rf1 {[%clk 0:00:31.3]}
48... e5 {[%clk 0:01:14.5]} 49. Nc3 {[%clk 0:00:31.8]} 49... Bc6 {[%clk
0:01:11.7]} 50. Rd1 {[%clk 0:00:29.8]} 50... e4 {[%clk 0:01:04.9]} 0-1